[Event "Titled Tuesday Blitz May 18 2021"]
[White "Khusnutdinov, Rustam"]
[Black "Shipov, Sergei"]
[WhiteFideId "13701703"]
[BlackFideId "4113624"]
[WhiteElo "2571"]
[BlackElo "2780"]
[Result "1-0"]
[Round "11"]
[TimeControl "180+1"]
[Date "2021.05.18"]
[WhiteClock "0:00:13"]
[BlackClock "0:00:02"]

1. d4 {[%clk 0:03:00]}  Nf6 {[%clk 0:02:58]} 2. c4 {[%clk 0:03:01]}  c5 {[%clk 0:02:58]} 3. d5 {[%clk 0:02:58]}  b5 {[%clk 0:02:58]} 4. cxb5 {[%clk 0:02:58]}  a6 {[%clk 0:02:59]} 5. bxa6 {[%clk 0:02:51]}  g6 {[%clk 0:02:59]} 6. Nc3 {[%clk 0:02:51]}  Bg7 {[%clk 0:02:59]} 7. e4 {[%clk 0:02:49]}  d6 {[%clk 0:02:59]} 8. Bb5+ {[%clk 0:02:33]}  Nfd7 {[%clk 0:02:59]} 9. Nf3 {[%clk 0:02:20]}  Qa5 {[%clk 0:02:58]} 10. Bd2 {[%clk 0:02:12]}  Bxa6 {[%clk 0:02:50]} 11. a4 {[%clk 0:02:11]}  O-O {[%clk 0:02:30]} 12. Ra3 {[%clk 0:02:05]}  c4 {[%clk 0:02:11]} 13. O-O {[%clk 0:01:37]}  Nc5 {[%clk 0:02:10]} 14. Qc2 {[%clk 0:01:23]}  Nd3 {[%clk 0:01:47]} 15. b3 {[%clk 0:01:04]}  Nb4 {[%clk 0:01:25]} 16. Qb1 {[%clk 0:01:03]}  Bxb5 {[%clk 0:00:14]} 17. Nxb5 {[%clk 0:01:00]}  N8a6 {[%clk 0:00:12]} 18. bxc4 {[%clk 0:00:56]}  Rfc8 {[%clk 0:00:12]} 19. Rc1 {[%clk 0:00:55]}  Rc5 {[%clk 0:00:10]} 20. Rb3 {[%clk 0:00:49]}  Rac8 {[%clk 0:00:08]} 21. Rxb4 {[%clk 0:00:42]}  Nxb4 {[%clk 0:00:07]} 22. Bxb4 {[%clk 0:00:42]}  Qxa4 {[%clk 0:00:08]} 23. Bxc5 {[%clk 0:00:42]}  Rxc5 {[%clk 0:00:08]} 24. Qd3 {[%clk 0:00:23]}  h5 {[%clk 0:00:07]} 25. h3 {[%clk 0:00:22]}  Bh6 {[%clk 0:00:07]} 26. Rc3 {[%clk 0:00:16]}  Qa1+ {[%clk 0:00:06]} 27. Kh2 {[%clk 0:00:16]}  Bg7 {[%clk 0:00:06]} 28. Ra3 {[%clk 0:00:16]}  Qb2 {[%clk 0:00:06]} 29. Ra8+ {[%clk 0:00:15]}  Kh7 {[%clk 0:00:06]} 30. Ng5+ {[%clk 0:00:15]}  Kh6 {[%clk 0:00:07]} 31. Nxf7+ {[%clk 0:00:15]}  Kh7 {[%clk 0:00:07]} 32. Ng5+ {[%clk 0:00:15]}  Kh6 {[%clk 0:00:08]} 33. Qe3 {[%clk 0:00:15]}  Bf6 {[%clk 0:00:06]} 34. Ne6+ {[%clk 0:00:13]}  g5 {[%clk 0:00:06]} 35. Nxc5 {[%clk 0:00:13]}  dxc5 {[%clk 0:00:05]} 36. Ra6 {[%clk 0:00:11]}  Kg7 {[%clk 0:00:05]} 37. Re6 {[%clk 0:00:11]}  Be5+ {[%clk 0:00:04]} 38. Rxe5 {[%clk 0:00:12]}  Qxe5+ {[%clk 0:00:03]} 39. Qg3 {[%clk 0:00:12]}  Qf6 {[%clk 0:00:03]} 40. h4 {[%clk 0:00:13]}  g4 {[%clk 0:00:03]} 41. Nc7 {[%clk 0:00:13]}  Kf7 {[%clk 0:00:03]} 42. Ne6 {[%clk 0:00:13]}  Qb2 {[%clk 0:00:03]} 43. Qf4+ {[%clk 0:00:13]}  Kg6 {[%clk 0:00:03]} 44. Qg5+ {[%clk 0:00:13]}  Kf7 {[%clk 0:00:03]} 45. Qxh5+ {[%clk 0:00:14]}  Kf6 {[%clk 0:00:03]} 46. Qh8+ {[%clk 0:00:13]}  Kf7 {[%clk 0:00:02]} 47. Qxb2 {[%clk 0:00:13]} 1-0


[Site "https://www.chess.com"]

[Event "Titled Tuesday Blitz May 18 2021"]
[White "Martirosyan, Haik M."]
[Black "Erigaisi Arjun"]
[WhiteFideId "13306553"]
[BlackFideId "35009192"]
[WhiteElo "2656"]
[BlackElo "2609"]
[Result "1/2-1/2"]
[Round "11"]
[TimeControl "180+1"]
[Date "2021.05.18"]
[WhiteClock "0:01:06"]
[BlackClock "0:00:19"]

1. c4 {[%clk 0:03:00]}  e6 {[%clk 0:03:00]} 2. g3 {[%clk 0:03:00]}  d5 {[%clk 0:03:00]} 3. Bg2 {[%clk 0:03:01]}  Nf6 {[%clk 0:03:01]} 4. Nf3 {[%clk 0:03:02]}  dxc4 {[%clk 0:03:00]} 5. Qa4+ {[%clk 0:03:01]}  Nbd7 {[%clk 0:03:00]} 6. Qxc4 {[%clk 0:03:01]}  a6 {[%clk 0:03:00]} 7. Qc2 {[%clk 0:03:01]}  c5 {[%clk 0:02:59]} 8. O-O {[%clk 0:03:01]}  b5 {[%clk 0:02:58]} 9. a4 {[%clk 0:02:56]}  Bb7 {[%clk 0:02:57]} 10. Na3 {[%clk 0:02:56]}  Qb6 {[%clk 0:02:54]} 11. d3 {[%clk 0:02:56]}  Bd6 {[%clk 0:02:54]} 12. e4 {[%clk 0:02:50]}  O-O {[%clk 0:02:52]} 13. Be3 {[%clk 0:02:48]}  Ng4 {[%clk 0:02:49]} 14. Bd2 {[%clk 0:02:40]}  Rfc8 {[%clk 0:02:46]} 15. Qb3 {[%clk 0:02:32]}  c4 {[%clk 0:02:34]} 16. dxc4 {[%clk 0:02:29]}  Nc5 {[%clk 0:02:34]} 17. Qc2 {[%clk 0:02:15]}  Bxe4 {[%clk 0:02:29]} 18. Qd1 {[%clk 0:02:11]}  bxa4 {[%clk 0:02:17]} 19. Ng5 {[%clk 0:02:02]}  Bxg2 {[%clk 0:02:10]} 20. Kxg2 {[%clk 0:02:03]}  Nf6 {[%clk 0:01:38]} 21. Bc3 {[%clk 0:01:59]}  h6 {[%clk 0:01:36]} 22. Bxf6 {[%clk 0:01:52]}  gxf6 {[%clk 0:01:37]} 23. Nf3 {[%clk 0:01:52]}  Nb3 {[%clk 0:01:36]} 24. Rb1 {[%clk 0:01:50]}  Bxa3 {[%clk 0:01:32]} 25. bxa3 {[%clk 0:01:51]}  Rxc4 {[%clk 0:01:32]} 26. Qe2 {[%clk 0:01:52]}  Qc6 {[%clk 0:01:31]} 27. Kg1 {[%clk 0:01:48]}  Rc2 {[%clk 0:01:25]} 28. Qd1 {[%clk 0:01:48]}  Rc8 {[%clk 0:01:16]} 29. Nd4 {[%clk 0:01:40]}  Nxd4 {[%clk 0:01:13]} 30. Qxd4 {[%clk 0:01:41]}  Kg7 {[%clk 0:01:04]} 31. Qg4+ {[%clk 0:01:41]}  Kh7 {[%clk 0:01:03]} 32. Qh4 {[%clk 0:01:35]}  f5 {[%clk 0:00:47]} 33. Qf6 {[%clk 0:01:31]}  Qc7 {[%clk 0:00:46]} 34. Rb4 {[%clk 0:01:30]}  Rc1 {[%clk 0:00:38]} 35. Rh4 {[%clk 0:01:26]}  Rxf1+ {[%clk 0:00:38]} 36. Kxf1 {[%clk 0:01:27]}  Qc1+ {[%clk 0:00:38]} 37. Kg2 {[%clk 0:01:26]}  Rc7 {[%clk 0:00:37]} 38. g4 {[%clk 0:01:20]}  Qc6+ {[%clk 0:00:18]} 39. Kg1 {[%clk 0:01:06]}  Qc1+ {[%clk 0:00:18]} 40. Kg2 {[%clk 0:01:06]}  Qc6+ {[%clk 0:00:19]} 41. Kg1 {[%clk 0:01:06]}  Qc1+ {[%clk 0:00:19]} 42. Kg2 {[%clk 0:01:06]} 1/2-1/2


[Site "https://www.chess.com"]

[Event "Titled Tuesday Blitz May 18 2021"]
[White "Postny, Evgeny"]
[Black "Lazavik, Denis"]
[WhiteFideId "2804344"]
[BlackFideId "13515110"]
[WhiteElo "2537"]
[BlackElo "2436"]
[Result "1/2-1/2"]
[Round "11"]
[TimeControl "180+1"]
[Date "2021.05.18"]
[WhiteClock "0:00:07"]
[BlackClock "0:00:35"]

1. Nf3 {[%clk 0:03:00]}  Nf6 {[%clk 0:03:00]} 2. c4 {[%clk 0:03:01]}  e6 {[%clk 0:02:58]} 3. g3 {[%clk 0:03:01]}  d5 {[%clk 0:02:58]} 4. Bg2 {[%clk 0:03:02]}  Be7 {[%clk 0:02:58]} 5. O-O {[%clk 0:03:02]}  O-O {[%clk 0:02:59]} 6. d4 {[%clk 0:03:02]}  dxc4 {[%clk 0:02:59]} 7. Qc2 {[%clk 0:03:03]}  a6 {[%clk 0:02:59]} 8. a4 {[%clk 0:03:01]}  Bd7 {[%clk 0:02:59]} 9. Qxc4 {[%clk 0:03:01]}  Bc6 {[%clk 0:02:59]} 10. Bg5 {[%clk 0:03:01]}  Nbd7 {[%clk 0:02:52]} 11. Rd1 {[%clk 0:02:55]}  h6 {[%clk 0:02:42]} 12. Bxf6 {[%clk 0:02:54]}  Nxf6 {[%clk 0:02:43]} 13. Ne5 {[%clk 0:02:51]}  Bxg2 {[%clk 0:02:41]} 14. Kxg2 {[%clk 0:02:52]}  a5 {[%clk 0:02:35]} 15. Nc3 {[%clk 0:02:49]}  c6 {[%clk 0:02:35]} 16. e4 {[%clk 0:02:47]}  Nd7 {[%clk 0:02:31]} 17. Nxd7 {[%clk 0:02:42]}  Qxd7 {[%clk 0:02:31]} 18. Qe2 {[%clk 0:02:36]}  Bf6 {[%clk 0:02:26]} 19. e5 {[%clk 0:02:24]}  Be7 {[%clk 0:02:25]} 20. Rd3 {[%clk 0:02:20]}  Rad8 {[%clk 0:02:21]} 21. Rad1 {[%clk 0:02:17]}  Qc7 {[%clk 0:02:21]} 22. Ne4 {[%clk 0:02:04]}  Rd7 {[%clk 0:02:19]} 23. h4 {[%clk 0:02:03]}  Rfd8 {[%clk 0:02:16]} 24. b3 {[%clk 0:02:03]}  Qb6 {[%clk 0:02:14]} 25. Qe3 {[%clk 0:01:59]}  Qa6 {[%clk 0:02:01]} 26. Kh3 {[%clk 0:01:49]}  c5 {[%clk 0:01:59]} 27. Kg2 {[%clk 0:01:41]}  c4 {[%clk 0:01:50]} 28. bxc4 {[%clk 0:01:33]}  Qxc4 {[%clk 0:01:51]} 29. Nc3 {[%clk 0:01:19]}  Bb4 {[%clk 0:01:43]} 30. Nb5 {[%clk 0:01:15]}  Bf8 {[%clk 0:01:41]} 31. Nc3 {[%clk 0:01:09]}  b5 {[%clk 0:01:13]} 32. axb5 {[%clk 0:00:54]}  a4 {[%clk 0:01:13]} 33. d5 {[%clk 0:00:50]}  exd5 {[%clk 0:01:07]} 34. Rd4 {[%clk 0:00:45]}  Qc5 {[%clk 0:01:06]} 35. Nxa4 {[%clk 0:00:29]}  Qxb5 {[%clk 0:01:04]} 36. e6 {[%clk 0:00:28]}  fxe6 {[%clk 0:00:57]} 37. Qxe6+ {[%clk 0:00:29]}  Rf7 {[%clk 0:00:53]} 38. Nc3 {[%clk 0:00:23]}  Qd7 {[%clk 0:00:51]} 39. Qxd7 {[%clk 0:00:23]}  Rfxd7 {[%clk 0:00:51]} 40. Rxd5 {[%clk 0:00:23]}  Rxd5 {[%clk 0:00:51]} 41. Rxd5 {[%clk 0:00:24]}  Rxd5 {[%clk 0:00:51]} 42. Nxd5 {[%clk 0:00:25]}  Kf7 {[%clk 0:00:52]} 43. h5 {[%clk 0:00:20]}  Ke6 {[%clk 0:00:52]} 44. Ne3 {[%clk 0:00:19]}  Bc5 {[%clk 0:00:52]} 45. Kf3 {[%clk 0:00:18]}  Kf6 {[%clk 0:00:52]} 46. Kg4 {[%clk 0:00:15]}  Ke6 {[%clk 0:00:46]} 47. Nd1 {[%clk 0:00:14]}  Kf6 {[%clk 0:00:46]} 48. Kf4 {[%clk 0:00:13]}  Bd6+ {[%clk 0:00:46]} 49. Kg4 {[%clk 0:00:12]}  Bc5 {[%clk 0:00:46]} 50. Ne3 {[%clk 0:00:08]}  Ke6 {[%clk 0:00:44]} 51. Kf3 {[%clk 0:00:06]}  Kf6 {[%clk 0:00:44]} 52. Nd5+ {[%clk 0:00:06]}  Kg5 {[%clk 0:00:42]} 53. g4 {[%clk 0:00:07]}  Bd6 {[%clk 0:00:39]} 54. Nc3 {[%clk 0:00:07]}  Be5 {[%clk 0:00:34]} 55. Ne4+ {[%clk 0:00:07]}  Kh4 {[%clk 0:00:35]} 56. Nc5 {[%clk 0:00:05]}  Kg5 {[%clk 0:00:34]} 57. Nd3 {[%clk 0:00:04]}  Bd6 {[%clk 0:00:33]} 58. Nc1 {[%clk 0:00:03]}  g6 {[%clk 0:00:33]} 59. Ne2 {[%clk 0:00:04]}  gxh5 {[%clk 0:00:33]} 60. gxh5 {[%clk 0:00:04]}  Kxh5 {[%clk 0:00:34]} 61. Kg2 {[%clk 0:00:04]}  Kg4 {[%clk 0:00:34]} 62. f3+ {[%clk 0:00:04]}  Kg5 {[%clk 0:00:34]} 63. Nc3 {[%clk 0:00:04]}  Be5 {[%clk 0:00:34]} 64. Ne4+ {[%clk 0:00:05]}  Kf5 {[%clk 0:00:34]} 65. Nf2 {[%clk 0:00:05]}  h5 {[%clk 0:00:34]} 66. Ne4 {[%clk 0:00:06]}  h4 {[%clk 0:00:34]} 67. Nf2 {[%clk 0:00:06]}  Bg3 {[%clk 0:00:35]} 68. Nh3 {[%clk 0:00:07]} 1/2-1/2


[Site "https://www.chess.com"]

[Event "Titled Tuesday Blitz May 18 2021"]
[White "Praggnanandhaa R"]
[Black "Naroditsky, Daniel"]
[WhiteFideId "25059530"]
[BlackFideId "2026961"]
[WhiteElo "2555"]
[BlackElo "2608"]
[Result "1-0"]
[Round "11"]
[TimeControl "180+1"]
[Date "2021.05.18"]
[WhiteClock "0:00:06"]
[BlackClock "0:00:04"]

1. d4 {[%clk 0:03:00]}  Nf6 {[%clk 0:02:58]} 2. Nf3 {[%clk 0:03:00]}  g6 {[%clk 0:02:59]} 3. g3 {[%clk 0:02:53]}  Bg7 {[%clk 0:02:59]} 4. Bg2 {[%clk 0:02:53]}  O-O {[%clk 0:03:00]} 5. O-O {[%clk 0:02:54]}  d6 {[%clk 0:03:00]} 6. b3 {[%clk 0:02:54]}  c5 {[%clk 0:02:58]} 7. Bb2 {[%clk 0:02:44]}  cxd4 {[%clk 0:02:57]} 8. Nxd4 {[%clk 0:02:45]}  d5 {[%clk 0:02:58]} 9. c4 {[%clk 0:02:43]}  dxc4 {[%clk 0:02:58]} 10. bxc4 {[%clk 0:02:44]}  Nc6 {[%clk 0:02:59]} 11. Nxc6 {[%clk 0:02:41]}  bxc6 {[%clk 0:03:00]} 12. Qxd8 {[%clk 0:02:37]}  Rxd8 {[%clk 0:03:01]} 13. Bxc6 {[%clk 0:02:37]}  Rb8 {[%clk 0:02:41]} 14. Be5 {[%clk 0:02:37]}  Rb6 {[%clk 0:02:39]} 15. Bf3 {[%clk 0:02:28]}  Bh3 {[%clk 0:02:17]} 16. Rc1 {[%clk 0:02:23]}  Re6 {[%clk 0:01:51]} 17. Bc3 {[%clk 0:02:01]}  Bh6 {[%clk 0:01:00]} 18. Re1 {[%clk 0:01:52]}  Ne4 {[%clk 0:00:59]} 19. Bxe4 {[%clk 0:01:30]}  Rxe4 {[%clk 0:00:58]} 20. Na3 {[%clk 0:01:30]}  e6 {[%clk 0:00:30]} 21. Bb4 {[%clk 0:00:35]}  Bg7 {[%clk 0:00:16]} 22. Rab1 {[%clk 0:00:25]}  h5 {[%clk 0:00:12]} 23. e3 {[%clk 0:00:19]}  Rb8 {[%clk 0:00:08]} 24. f3 {[%clk 0:00:16]}  Re5 {[%clk 0:00:05]} 25. Kf2 {[%clk 0:00:16]}  Rf5 {[%clk 0:00:04]} 26. f4 {[%clk 0:00:13]}  a5 {[%clk 0:00:02]} 27. Bd6 {[%clk 0:00:10]}  Rd8 {[%clk 0:00:02]} 28. c5 {[%clk 0:00:10]}  Rd5 {[%clk 0:00:03]} 29. Red1 {[%clk 0:00:11]}  Bf5 {[%clk 0:00:01]} 30. Rxd5 {[%clk 0:00:07]}  Bxb1 {[%clk 0:00:01]} 31. Rd2 {[%clk 0:00:06]}  Bc3 {[%clk 0:00:02]} 32. Nxb1 {[%clk 0:00:06]}  Bxd2 {[%clk 0:00:02]} 33. Nxd2 {[%clk 0:00:07]}  f6 {[%clk 0:00:02]} 34. Nc4 {[%clk 0:00:06]}  Kf7 {[%clk 0:00:03]} 35. c6 {[%clk 0:00:06]}  Ke8 {[%clk 0:00:04]} 36. c7 {[%clk 0:00:06]} 1-0


[Site "https://www.chess.com"]

[Event "Titled Tuesday Blitz May 18 2021"]
[White "Salem, A.R. Saleh"]
[Black "Davtyan, Artur"]
[WhiteFideId "9301348"]
[BlackFideId "13308327"]
[WhiteElo "2659"]
[BlackElo "2311"]
[Result "1-0"]
[Round "11"]
[TimeControl "180+1"]
[Date "2021.05.18"]
[WhiteClock "0:00:07"]
[BlackClock "0:00:07"]

1. d4 {[%clk 0:03:00]}  Nf6 {[%clk 0:02:59]} 2. c4 {[%clk 0:03:01]}  e6 {[%clk 0:02:59]} 3. Nf3 {[%clk 0:03:01]}  d5 {[%clk 0:02:58]} 4. Nc3 {[%clk 0:03:02]}  Bb4 {[%clk 0:02:57]} 5. Bg5 {[%clk 0:03:02]}  h6 {[%clk 0:02:56]} 6. Bxf6 {[%clk 0:03:03]}  Qxf6 {[%clk 0:02:55]} 7. e3 {[%clk 0:03:04]}  O-O {[%clk 0:02:55]} 8. Rc1 {[%clk 0:03:05]}  dxc4 {[%clk 0:02:54]} 9. Bxc4 {[%clk 0:03:06]}  c5 {[%clk 0:02:54]} 10. dxc5 {[%clk 0:03:06]}  Rd8 {[%clk 0:02:48]} 11. Qc2 {[%clk 0:03:05]}  Nd7 {[%clk 0:02:46]} 12. c6 {[%clk 0:03:00]}  bxc6 {[%clk 0:02:46]} 13. O-O {[%clk 0:03:00]}  Rb8 {[%clk 0:02:43]} 14. Ne4 {[%clk 0:02:58]}  Qe7 {[%clk 0:02:43]} 15. Nd4 {[%clk 0:02:53]}  Bb7 {[%clk 0:02:33]} 16. Be2 {[%clk 0:01:48]}  c5 {[%clk 0:02:10]} 17. Nb3 {[%clk 0:01:48]}  Bd5 {[%clk 0:02:08]} 18. Bc4 {[%clk 0:01:40]}  Bxc4 {[%clk 0:01:42]} 19. Qxc4 {[%clk 0:01:41]}  Ne5 {[%clk 0:01:41]} 20. Qe2 {[%clk 0:01:24]}  c4 {[%clk 0:01:41]} 21. Nd4 {[%clk 0:01:24]}  Qb7 {[%clk 0:01:40]} 22. Ng3 {[%clk 0:01:00]}  Bc5 {[%clk 0:01:33]} 23. b3 {[%clk 0:01:00]}  Bxd4 {[%clk 0:01:22]} 24. exd4 {[%clk 0:01:01]}  Nd3 {[%clk 0:01:22]} 25. Rxc4 {[%clk 0:00:59]}  Nf4 {[%clk 0:01:22]} 26. Qf3 {[%clk 0:00:54]}  Qxf3 {[%clk 0:01:19]} 27. gxf3 {[%clk 0:00:55]}  h5 {[%clk 0:01:01]} 28. Re1 {[%clk 0:00:46]}  Rb5 {[%clk 0:00:59]} 29. Kf1 {[%clk 0:00:40]}  h4 {[%clk 0:00:57]} 30. Ne2 {[%clk 0:00:30]}  Nd3 {[%clk 0:00:47]} 31. Rb1 {[%clk 0:00:27]}  Rf5 {[%clk 0:00:47]} 32. Kg2 {[%clk 0:00:12]}  Rdd5 {[%clk 0:00:40]} 33. Rc3 {[%clk 0:00:09]}  h3+ {[%clk 0:00:32]} 34. Kxh3 {[%clk 0:00:05]}  Rxf3+ {[%clk 0:00:21]} 35. Kg2 {[%clk 0:00:06]}  Rxf2+ {[%clk 0:00:20]} 36. Kh1 {[%clk 0:00:04]}  Rh5 {[%clk 0:00:17]} 37. Rxd3 {[%clk 0:00:03]}  Rhxh2+ {[%clk 0:00:16]} 38. Kg1 {[%clk 0:00:03]}  Rfg2+ {[%clk 0:00:16]} 39. Kf1 {[%clk 0:00:03]}  Rxe2 {[%clk 0:00:16]} 40. a4 {[%clk 0:00:03]}  Ref2+ {[%clk 0:00:16]} 41. Kg1 {[%clk 0:00:03]}  Rfg2+ {[%clk 0:00:16]} 42. Kf1 {[%clk 0:00:04]}  Rc2 {[%clk 0:00:17]} 43. Kg1 {[%clk 0:00:04]}  g5 {[%clk 0:00:16]} 44. d5 {[%clk 0:00:03]}  exd5 {[%clk 0:00:15]} 45. Rxd5 {[%clk 0:00:04]}  f6 {[%clk 0:00:13]} 46. Rbd1 {[%clk 0:00:03]}  Kf7 {[%clk 0:00:11]} 47. Rd7+ {[%clk 0:00:03]}  Kg6 {[%clk 0:00:12]} 48. Rxa7 {[%clk 0:00:04]}  g4 {[%clk 0:00:12]} 49. Ra8 {[%clk 0:00:04]}  Kg5 {[%clk 0:00:11]} 50. Rg8+ {[%clk 0:00:03]}  Kf4 {[%clk 0:00:11]} 51. Rd4+ {[%clk 0:00:03]}  Kf3 {[%clk 0:00:10]} 52. Rgxg4 {[%clk 0:00:03]}  f5 {[%clk 0:00:07]} 53. Rdf4+ {[%clk 0:00:02]}  Ke3 {[%clk 0:00:08]} 54. Rxf5 {[%clk 0:00:03]}  Rhd2 {[%clk 0:00:05]} 55. Rf1 {[%clk 0:00:03]}  Rb2 {[%clk 0:00:05]} 56. a5 {[%clk 0:00:03]}  Ra2 {[%clk 0:00:04]} 57. b4 {[%clk 0:00:04]}  Rdb2 {[%clk 0:00:05]} 58. Rg3+ {[%clk 0:00:04]}  Ke4 {[%clk 0:00:05]} 59. Rg6 {[%clk 0:00:05]}  Ke3 {[%clk 0:00:05]} 60. Rg3+ {[%clk 0:00:04]}  Ke4 {[%clk 0:00:05]} 61. Rgf3 {[%clk 0:00:05]}  Kd4 {[%clk 0:00:04]} 62. R3f2 {[%clk 0:00:05]}  Rxf2 {[%clk 0:00:03]} 63. Rxf2 {[%clk 0:00:06]}  Ra1+ {[%clk 0:00:04]} 64. Kg2 {[%clk 0:00:06]}  Ra4 {[%clk 0:00:05]} 65. Rf4+ {[%clk 0:00:05]}  Kd5 {[%clk 0:00:04]} 66. Kf3 {[%clk 0:00:05]}  Kc6 {[%clk 0:00:05]} 67. Rf6+ {[%clk 0:00:05]}  Kb5 {[%clk 0:00:05]} 68. Rb6+ {[%clk 0:00:05]}  Kc4 {[%clk 0:00:06]} 69. a6 {[%clk 0:00:06]}  Kd5 {[%clk 0:00:06]} 70. b5 {[%clk 0:00:06]}  Kc5 {[%clk 0:00:07]} 71. Rb7 {[%clk 0:00:07]}  Kd6 {[%clk 0:00:07]} 72. a7 {[%clk 0:00:07]} 1-0


[Site "https://www.chess.com"]

[Event "Titled Tuesday Blitz May 18 2021"]
[White "Sanal, Vahap"]
[Black "Deac, Bogdan-Daniel"]
[WhiteFideId "6300545"]
[BlackFideId "1226380"]
[WhiteElo "2507"]
[BlackElo "2605"]
[Result "1-0"]
[Round "11"]
[TimeControl "180+1"]
[Date "2021.05.18"]
[WhiteClock "0:00:06"]
[BlackClock "0:00:01"]

1. e4 {[%clk 0:03:00]}  e5 {[%clk 0:03:00]} 2. Nf3 {[%clk 0:02:58]}  Nf6 {[%clk 0:03:00]} 3. Nc3 {[%clk 0:02:52]}  Nc6 {[%clk 0:02:59]} 4. d4 {[%clk 0:02:52]}  exd4 {[%clk 0:02:58]} 5. Nxd4 {[%clk 0:02:53]}  Bb4 {[%clk 0:02:59]} 6. Nxc6 {[%clk 0:02:50]}  bxc6 {[%clk 0:03:00]} 7. Bd3 {[%clk 0:02:50]}  O-O {[%clk 0:03:00]} 8. O-O {[%clk 0:02:50]}  d5 {[%clk 0:03:01]} 9. exd5 {[%clk 0:02:50]}  Bg4 {[%clk 0:03:02]} 10. f3 {[%clk 0:02:50]}  Bh5 {[%clk 0:03:02]} 11. dxc6 {[%clk 0:02:50]}  Qd4+ {[%clk 0:03:00]} 12. Kh1 {[%clk 0:02:51]}  Bxc3 {[%clk 0:03:01]} 13. bxc3 {[%clk 0:02:51]}  Qxc3 {[%clk 0:03:02]} 14. Bf4 {[%clk 0:02:50]}  Qxc6 {[%clk 0:03:02]} 15. Qe2 {[%clk 0:02:43]}  Nd5 {[%clk 0:02:51]} 16. Bg3 {[%clk 0:02:25]}  Bg6 {[%clk 0:02:49]} 17. Bb5 {[%clk 0:02:18]}  Qc3 {[%clk 0:02:12]} 18. Be5 {[%clk 0:02:06]}  Qc5 {[%clk 0:02:00]} 19. Rad1 {[%clk 0:01:22]}  c6 {[%clk 0:01:48]} 20. c4 {[%clk 0:01:14]}  cxb5 {[%clk 0:00:35]} 21. cxd5 {[%clk 0:01:13]}  Rfe8 {[%clk 0:00:35]} 22. Qb2 {[%clk 0:01:11]}  f6 {[%clk 0:00:35]} 23. Bd4 {[%clk 0:01:08]}  Qxd5 {[%clk 0:00:24]} 24. Bxf6 {[%clk 0:01:07]}  Qf7 {[%clk 0:00:24]} 25. Be5 {[%clk 0:01:05]}  a6 {[%clk 0:00:22]} 26. f4 {[%clk 0:01:05]}  Bf5 {[%clk 0:00:21]} 27. Rd6 {[%clk 0:01:02]}  Rac8 {[%clk 0:00:20]} 28. Qd4 {[%clk 0:00:53]}  Re6 {[%clk 0:00:16]} 29. h3 {[%clk 0:00:35]}  Rxd6 {[%clk 0:00:14]} 30. Qxd6 {[%clk 0:00:35]}  Qxa2 {[%clk 0:00:10]} 31. Ra1 {[%clk 0:00:35]}  Qf7 {[%clk 0:00:08]} 32. Rxa6 {[%clk 0:00:36]}  h6 {[%clk 0:00:08]} 33. Rb6 {[%clk 0:00:33]}  Be4 {[%clk 0:00:07]} 34. Qd4 {[%clk 0:00:27]}  Qd5 {[%clk 0:00:05]} 35. Qxd5+ {[%clk 0:00:24]}  Bxd5 {[%clk 0:00:06]} 36. Rg6 {[%clk 0:00:22]}  Rc2 {[%clk 0:00:05]} 37. Rxg7+ {[%clk 0:00:22]}  Kf8 {[%clk 0:00:05]} 38. Rg6 {[%clk 0:00:16]}  b4 {[%clk 0:00:03]} 39. f5 {[%clk 0:00:15]}  b3 {[%clk 0:00:03]} 40. Rxh6 {[%clk 0:00:14]}  b2 {[%clk 0:00:02]} 41. Bxb2 {[%clk 0:00:14]}  Rxb2 {[%clk 0:00:03]} 42. Rg6 {[%clk 0:00:14]}  Be4 {[%clk 0:00:03]} 43. Rg4 {[%clk 0:00:12]}  Re2 {[%clk 0:00:03]} 44. Kg1 {[%clk 0:00:12]}  Kf7 {[%clk 0:00:03]} 45. Kf1 {[%clk 0:00:08]}  Bd3 {[%clk 0:00:03]} 46. Rd4 {[%clk 0:00:09]}  Ba6 {[%clk 0:00:03]} 47. Kg1 {[%clk 0:00:07]}  Bb5 {[%clk 0:00:02]} 48. Rd6 {[%clk 0:00:06]}  Bc4 {[%clk 0:00:02]} 49. g4 {[%clk 0:00:07]}  Rc2 {[%clk 0:00:01]} 50. g5 {[%clk 0:00:06]}  Re2 {[%clk 0:00:01]} 51. g6+ {[%clk 0:00:05]}  Kg7 {[%clk 0:00:01]} 52. Rd7+ {[%clk 0:00:05]}  Kf6 {[%clk 0:00:01]} 53. Rc7 {[%clk 0:00:06]}  Re4 {[%clk 0:00:01]} 54. Rc5 {[%clk 0:00:05]}  Bg8 {[%clk 0:00:01]} 55. Kg2 {[%clk 0:00:05]}  Re5 {[%clk 0:00:01]} 56. Rc8 {[%clk 0:00:06]} 1-0


[Site "https://www.chess.com"]

[Event "Titled Tuesday Blitz May 18 2021"]
[White "Seo, Jung Min"]
[Black "Erdogdu, Mert"]
[WhiteFideId "1734687"]
[BlackFideId "6301495"]
[WhiteElo "2486"]
[BlackElo "2485"]
[Result "0-1"]
[Round "11"]
[TimeControl "180+1"]
[Date "2021.05.18"]
[WhiteClock "0:01:41"]
[BlackClock "0:01:45"]

1. Nf3 {[%clk 0:03:00]}  d5 {[%clk 0:02:59]} 2. d4 {[%clk 0:03:00]}  e6 {[%clk 0:03:00]} 3. c4 {[%clk 0:03:00]}  c5 {[%clk 0:02:59]} 4. Nc3 {[%clk 0:02:59]}  Nc6 {[%clk 0:02:59]} 5. cxd5 {[%clk 0:02:59]}  exd5 {[%clk 0:03:00]} 6. g3 {[%clk 0:02:59]}  Nf6 {[%clk 0:03:00]} 7. Bg2 {[%clk 0:02:59]}  Be7 {[%clk 0:03:00]} 8. O-O {[%clk 0:03:00]}  O-O {[%clk 0:03:01]} 9. Bg5 {[%clk 0:02:57]}  cxd4 {[%clk 0:03:01]} 10. Nxd4 {[%clk 0:02:57]}  h6 {[%clk 0:03:01]} 11. Bf4 {[%clk 0:02:54]}  Qb6 {[%clk 0:02:58]} 12. Nb3 {[%clk 0:02:52]}  d4 {[%clk 0:02:48]} 13. Nd5 {[%clk 0:02:50]}  Nxd5 {[%clk 0:02:45]} 14. Bxd5 {[%clk 0:02:51]}  Rd8 {[%clk 0:02:45]} 15. Bg2 {[%clk 0:02:50]}  a5 {[%clk 0:02:39]} 16. Bc1 {[%clk 0:02:36]}  a4 {[%clk 0:02:33]} 17. Nd2 {[%clk 0:02:36]}  Bg4 {[%clk 0:02:31]} 18. Bf3 {[%clk 0:02:34]}  Bh3 {[%clk 0:02:27]} 19. Bg2 {[%clk 0:02:34]}  Bxg2 {[%clk 0:02:27]} 20. Kxg2 {[%clk 0:02:34]}  Qb5 {[%clk 0:02:24]} 21. Nf3 {[%clk 0:02:33]}  d3 {[%clk 0:02:22]} 22. exd3 {[%clk 0:02:17]}  Rxd3 {[%clk 0:02:22]} 23. Qe2 {[%clk 0:02:17]}  Qd5 {[%clk 0:02:22]} 24. Kg1 {[%clk 0:02:11]}  Bf6 {[%clk 0:02:17]} 25. Ne1 {[%clk 0:02:09]}  Rd1 {[%clk 0:02:04]} 26. Nc2 {[%clk 0:01:58]}  Rxf1+ {[%clk 0:02:01]} 27. Qxf1 {[%clk 0:01:58]}  a3 {[%clk 0:02:00]} 28. Ne3 {[%clk 0:01:47]}  Qe4 {[%clk 0:01:54]} 29. f3 {[%clk 0:01:41]}  axb2 {[%clk 0:01:45]} 0-1


[Site "https://www.chess.com"]